fUST/lending_fUST_20250122
["ID","MTS","AMOUNT","RATE_DAILY","PERIOD"]
[349912026,1737497433878,-325.837569,0.00020999,2]
[349912027,1737497433887,-151.0,0.00020999,2]
[349912028,1737497433897,-325.837569,0.00020999,2]
[349912029,1737497433906,-325.837569,0.00020999,2]
[349912030,1737497433915,-151.0,0.00020999,2]
[349912031,1737497433924,-151.0,0.00020999,2]
[349912032,1737497433934,-325.83756,0.00020999,2]
[349912033,1737497433943,-173.735792,0.00020999,2]
[349912034,1737497433953,-500.0,0.00020999,2]
[349912035,1737497433962,-500.0,0.00020999,2]
[349912036,1737497433972,-500.0,0.00020999,2]
[349912037,1737497433981,-500.0,0.00020999,2]
[349912038,1737497433991,-500.0,0.00020999,2]
[349912039,1737497434000,-500.0,0.00020999,2]
[349912040,1737497434009,-175.69634008,0.00020999,2]
[349912041,1737497434019,-500.0,0.00020999,2]
[349912042,1737497434028,-255.15,0.00020999,2]
[349912043,1737497434037,-500.0,0.00020999,2]
[349912044,1737497434046,-500.0,0.00020999,2]
[349912045,1737497434056,-281.44894424,0.00020999,2]
[349912046,1737497434065,-500.0,0.00020999,2]
[349912047,1737497434074,-389.28253661,0.00020999,2]
[349912048,1737497434085,-500.0,0.00020999,2]
[349912049,1737497434094,-616.56490654,0.00020999,2]
[349912050,1737497434104,-500.0,0.00020999,2]
[349912051,1737497434114,-500.0,0.00020999,2]
[349912052,1737497434123,-500.0,0.00020999,2]
[349912053,1737497434133,-500.0,0.00020999,2]
[349912054,1737497434142,-500.0,0.00020999,2]
[349912055,1737497434152,-500.0,0.00020999,2]
[349912056,1737497434161,-300.0,0.00020999,2]
[349912057,1737497434170,-500.0,0.00020999,2]
[349912058,1737497434180,-500.0,0.00020999,2]
[349912059,1737497434190,-500.0,0.00020999,2]
[349912060,1737497434199,-500.0,0.00020999,2]
[349912061,1737497434209,-500.0,0.00020999,2]
[349912062,1737497434219,-500.0,0.00020999,2]
[349912063,1737497434228,-500.0,0.00020999,2]
[349912064,1737497434238,-500.0,0.00020999,2]
[349912065,1737497434248,-500.0,0.00020999,2]
[349912066,1737497434258,-500.0,0.00020999,2]
[349912067,1737497434267,-500.0,0.00020999,2]
[349912068,1737497434276,-500.0,0.00020999,2]
[349912069,1737497434286,-300.0,0.00020999,2]
[349912070,1737497434295,-500.0,0.00020999,2]
[349912071,1737497434305,-500.0,0.00020999,2]
[349912072,1737497434314,-500.0,0.00020999,2]
[349912073,1737497434324,-200.0,0.00020999,2]
[349912074,1737497434334,-650.0,0.00020999,2]
[349912075,1737497434343,-500.0,0.00020999,2]
[349912076,1737497434353,-500.0,0.00020999,2]
[349912077,1737497434363,-500.0,0.00020999,2]
[349912078,1737497434373,-500.0,0.00020999,2]
[349912079,1737497434384,-500.0,0.00020999,2]
[349912080,1737497434394,-500.0,0.00020999,2]
[349912081,1737497434404,-500.0,0.00020999,2]
[349912082,1737497434414,-500.0,0.00020999,2]
[349912083,1737497434424,-500.0,0.00020999,2]
[349912084,1737497434434,-500.0,0.00020999,2]
[349912085,1737497434444,-500.0,0.00020999,2]
[349912086,1737497434454,-500.0,0.00020999,2]
[349912087,1737497434464,-500.0,0.00020999,2]
[349912088,1737497434474,-500.0,0.00020999,2]
[349912089,1737497434484,-500.0,0.00020999,2]
[349912090,1737497434494,-500.0,0.00020999,2]
[349912091,1737497434503,-500.0,0.00020999,2]
[349912092,1737497434515,-500.0,0.00020999,2]
[349912093,1737497434526,-500.0,0.00020999,2]
[349912094,1737497434536,-500.0,0.00020999,2]
[349912095,1737497434546,-500.0,0.00020999,2]
[349912096,1737497434560,-500.0,0.00020999,2]
[349912097,1737497434570,-500.0,0.00020999,2]
[349912098,1737497434581,-500.0,0.00020999,2]
[349912099,1737497434591,-500.0,0.00020999,2]
[349912100,1737497434602,-500.0,0.00020999,2]
[349912101,1737497434612,-500.0,0.00020999,2]
[349912102,1737497434622,-236.51063861,0.00020999,2]
[349912103,1737497434633,-500.0,0.00020999,2]
[349912104,1737497434643,-500.0,0.00020999,2]
[349912105,1737497434653,-195.12710173,0.00020999,2]
[349912106,1737497434665,-500.0,0.00020999,2]
[349912107,1737497434674,-500.0,0.00020999,2]
[349912108,1737497434686,-500.0,0.00020999,2]
[349912109,1737497434695,-500.0,0.00020999,2]
[349912110,1737497434705,-446.74281041,0.00020999,2]
[349912111,1737497434715,-500.0,0.00020999,2]
[349912112,1737497434725,-500.0,0.00020999,2]
[349912113,1737497434736,-500.0,0.00020999,2]
[349912114,1737497434746,-568.32350436,0.00020999,2]
[349912115,1737497434755,-5898.23255279,0.00021,15]
[349912691,1737497446061,-23348.25440793,0.00021,15]
[349912692,1737497446073,-3625.2861096,0.00021,15]
[349912696,1737497640247,159.49227,0.00013973,2]
[349912698,1737497715522,3755.22,0.0002,10]
[349912699,1737498030758,364.09,0.00024,120]
[349912705,1737498491209,159.619278,0.00013973,2]
[349912711,1737498515128,286.74498701,0.0002,7]
[349913056,1737498638216,-429.45196858,0.000189,2]
[349913058,1737498638226,-321.30163543,0.000199,2]
[349913060,1737498638236,-321.696,0.0001995,2]
[349913062,1737498638245,-300.0,0.00019999,2]
[349913064,1737498638256,-2180.84758544,0.0002,2]
[349913066,1737498638268,-6195.87110219,0.0002,2]
[349913068,1737498638278,-13419.18161419,0.0002,2]
[349913070,1737498638288,-302.96416829,0.0002,2]
[349913072,1737498638297,-153.0,0.00020447,2]
[349913073,1737498638306,-153.0,0.00020447,2]
[349913075,1737498638316,-153.0,0.00020447,2]
[349913077,1737498638325,-153.0,0.00020447,2]
[349913079,1737498638335,-153.0,0.00020447,2]
[349913081,1737498638344,-153.0,0.00020447,2]
[349913083,1737498638355,-153.0,0.00020447,2]
[349913085,1737498638364,-153.0,0.00020447,2]
[349913087,1737498638374,-146.51718349,0.00020447,2]
[349913279,1737498640368,-342.72109826,0.00020898,2]
[349913281,1737498640378,-157.27890174,0.000209,2]
[349913767,1737498646229,-7303.7188302,0.000209,2]
[349913769,1737498646239,-239.6621048,0.00020998,2]
[349913771,1737498646248,-500.0,0.00020999,2]
[349913773,1737498646257,-3884.37401693,0.00021,5]
[349913774,1737498646265,-615.12899982,0.00021,5]
[349913776,1737498646275,-82088.75290221,0.00021,15]
[349913926,1737499832674,-332.78390344,0.00018711,2]
[349913927,1737499832683,-787.38367087,0.000189,2]
[349913928,1737499832692,-153.15280637,0.0001995,2]
[349913968,1737499838353,-154.89819363,0.0001995,2]
[349913969,1737499838363,-300.0,0.00019999,2]
[349913970,1737499838373,-4289.18186276,0.0002,2]
[349913971,1737499838385,-711.34262683,0.0002,2]
[349913972,1737499838482,-49527.03654698,0.0002,2]
[349913973,1737499838493,-753.75228225,0.0002,2]
[349913974,1737499838505,-675.30720304,0.0002,2]
[349913975,1737499838517,-24406.01413734,0.0002,2]
[349913977,1737499838527,-299.88096096,0.00020899,2]
[349913978,1737499838536,-7212.2978076,0.000209,2]
[349913979,1737499838546,-152.0,0.00020968,2]
[349913980,1737499838641,-500.0,0.00020999,2]
[349913981,1737499838651,-1942.18700847,0.00021,5]
[349913982,1737499838661,-391.71074991,0.00021,5]
[349913983,1737499838671,-19693.81897194,0.00021,15]
[349914027,1737499840710,-353.1278318,0.00021,15]
[349914030,1737499840722,-401.35788478,0.00021,15]
[349914085,1737499845567,-502.33731225,0.00021,15]
[349914104,1737499846383,-395638.94779606,0.00021,15]
[349914106,1737499846394,-9816.0,0.00021,5]
[349914108,1737499846404,-1008.02293906,0.00021,4]
[349914110,1737499846414,-308.1696854,0.00021,2]
[349914112,1737499846424,-7212.2978074,0.00021038,2]
[349914114,1737499846434,-1000.0,0.0002117,2]
[349914116,1737499846445,-199.0,0.00021171,2]
[349914118,1737499846454,-199.0,0.00021171,2]
[349914120,1737499846467,-199.52,0.00021171,2]
[349914122,1737499846476,-1019.55087728,0.00021172,2]
[349914124,1737499846486,-7212.2978074,0.00021176,2]
[349914126,1737499846495,-1000.0,0.0002118,2]
[349914128,1737499846506,-9706.70449641,0.000212,15]
[349914129,1737499846617,-750.36882179,0.000212,15]
[349914132,1737499846635,-2031.19995,0.000212,15]
[349914138,1737499927557,159.739229,0.00013973,2]
[349914146,1737500807306,159.855846,0.00013973,2]
[349914180,1737501032733,-524.92244724,0.000189,2]
[349914181,1737501032746,-2167.0,0.0002,2]
[349914182,1737501032755,-295.14,0.0002012,2]
[349914183,1737501032765,-5000.0,0.00020442,7]
[349914184,1737501032775,-417.999,0.00020642,2]
[349914185,1737501032785,-262.39584084,0.000211,2]
[349914186,1737501032794,-300.0,0.00021198,2]
[349914187,1737501032804,-500.0,0.00021199,2]
[349914188,1737501032815,-427.33613095,0.00021199,2]
[349914189,1737501032825,-293.61437528,0.00021199,2]
[349914190,1737501032835,-500.0,0.00021199,2]
[349914191,1737501032846,-500.0,0.00021199,2]
[349914192,1737501032857,-500.0,0.00021199,2]
[349914193,1737501032867,-328.03519014,0.00021199,2]
[349914194,1737501032876,-500.0,0.00021199,2]
[349914195,1737501032886,-500.0,0.00021199,2]
[349914196,1737501032895,-500.0,0.00021199,2]
[349914197,1737501032904,-498.55951526,0.00021199,2]
[349914198,1737501032914,-500.0,0.00021199,2]
[349914199,1737501032925,-11059.98267729,0.000212,15]
[349914200,1737501037046,-55163.3583251,0.000212,15]
[349914248,1737501038769,-13847.71586893,0.000212,15]
[349914250,1737501038783,-39494.36864125,0.000212,15]
[349914252,1737501038796,-16388.024289,0.000212,15]
[349914337,1737501040718,-10603.0,0.000212,15]
[349914400,1737501043615,-235.5009296,0.00021199,2]
[349914401,1737501043625,-1511.37803206,0.000212,15]
[349914469,1737501046626,-4481.3130126,0.000212,15]
[349914470,1737501046638,-4307.41551521,0.000212,15]
[349914471,1737501046650,-1281.878479,0.000212,15]
[349914474,1737501713821,2616.77851112,0.0002,6]
[349914475,1737501751723,643.64819096,0.0002,6]
[349914476,1737501759491,231.39393079,0.0002,6]
[349914478,1737501839251,159.969103,0.00013973,2]
[349914479,1737501845287,1058.28,0.00024,120]
[349914491,1737502129220,199.78,0.00015051,2]
[349914888,1737502238779,-155.02790502,0.000191,2]
[349914889,1737502238790,-300.0,0.00019999,2]
[349914890,1737502238800,-5571.0895711,0.0002,2]
[349914891,1737502238811,-624.78153109,0.0002,2]
[349914892,1737502238823,-1492.41846891,0.0002,2]
[349914893,1737502238836,-11926.76314528,0.0002,2]
[349914894,1737502238846,-302.96416829,0.0002,2]
[349914895,1737502238856,-156.02808506,0.00020055,2]
[349914896,1737502238866,-282.855,0.0002014,2]
[349914897,1737502238876,-1188.4855401,0.00020151,2]
[349914898,1737502238886,-1677.83928731,0.0002079,2]
[349914900,1737502238895,-4015.25983551,0.00021,2]
[349914902,1737502238907,-7637.94676262,0.00021,2]
[349914904,1737502238918,-157.02826509,0.0002101,2]
[349914906,1737502238928,-152.66516287,0.000211,2]
[349914907,1737502238938,-362.1352928,0.000211,2]
[349914908,1737502238948,-620.0,0.000211,2]
[349914909,1737502238958,-200.95,0.0002119,2]
[349914910,1737502238967,-923.39600264,0.00021199,2]
[349914911,1737502238976,-166.577,0.00021199,2]
[349914912,1737502238986,-26365.97218098,0.000212,15]
[349915592,1737502562897,4263.26,0.00024,120]
[349915593,1737502721135,160.317741,0.00013973,2]
[349915595,1737502914268,300707.74295652,0.00024,120]
[349915652,1737503432205,-252.225,0.00019539,2]
[349915655,1737503432217,-15243.8679987,0.00019539,2]
[349915657,1737503432226,-168.8316586,0.00019655,2]
[349915659,1737503432235,-300.0,0.00019814,2]
[349915661,1737503432244,-20254.68276708,0.00019815,2]
[349916222,1737503437868,-291.50670892,0.00019815,2]
[349916223,1737503437879,-190.5644702,0.00019823,2]
[349916224,1737503437889,-301.45588,0.0002007,2]
[349916225,1737503437899,-553.9772649,0.00020071,2]
[349916226,1737503437909,-222.17535381,0.0002014,2]
[349916233,1737503438044,-49.18764619,0.0002014,2]
[349916235,1737503438054,-450.81235381,0.00020625,2]
[349916237,1737503438067,-49.18764619,0.00020625,2]
[349916239,1737503438076,-162.0,0.00021077,2]
[349916241,1737503438087,-162.0,0.00021077,2]
[349916243,1737503438096,-109.46342967,0.00021077,2]
[349916246,1737503438108,-52.53657033,0.00021077,2]
[349916248,1737503438117,-162.0,0.00021077,2]
[349916250,1737503438126,-162.0,0.00021077,2]
[349916252,1737503438135,-162.0,0.00021077,2]
[349916254,1737503438145,-162.0,0.00021077,2]
[349916256,1737503438154,-162.0,0.00021077,2]
[349916257,1737503438164,-196.8807083,0.00021099,2]
[349916259,1737503438173,-12469.7098653,0.000212,15]
[349916482,1737503440254,-45705.77984508,0.000212,15]
[349916484,1737503440264,-1054.51292125,0.000212,2]
[349916486,1737503440274,-195.291,0.000212,2]
[349916488,1737503440284,-620.0,0.000212,2]
[349916490,1737503440293,-1010.3084,0.000212,2]
[349916492,1737503440303,-500.0,0.00021205,5]
[349916494,1737503440313,-550.78055775,0.00021205,5]
[349916496,1737503440324,-160.317741,0.00021209,2]
[349916498,1737503440334,-2063.0,0.00021345,2]
[349916500,1737503440344,-536.0,0.00021345,2]
[349916502,1737503440354,-2308.0,0.00021345,2]
[349916504,1737503440363,-395.0,0.00021345,2]
[349916506,1737503440373,-3000.0,0.000214,2]
[349916508,1737503440382,-461.0,0.000214,9]
[349916510,1737503440391,-3000.0,0.0002141,2]
[349916512,1737503440401,-5656.598706,0.0002142,2]
[349916514,1737503440411,-353.8262533,0.00021507,2]
[349916516,1737503440420,-353.8262533,0.00021507,2]
[349916518,1737503440430,-353.8262533,0.00021507,2]
[349916520,1737503440439,-353.8262533,0.00021507,2]
[349916523,1737503440451,-353.8262533,0.00021507,2]
[349916524,1737503440460,-706.7360533,0.00021507,2]
[349916527,1737503440475,-420.0,0.0002158,2]
[349916529,1737503440484,-2167.0,0.000216,4]
[349916531,1737503440494,-156.0,0.00021647,2]
[349916533,1737503440503,-156.28,0.00021647,2]
[349916534,1737503440513,-153.0,0.00021787,2]
[349916536,1737503440523,-153.0,0.00021787,2]
[349916538,1737503440533,-153.0,0.00021787,2]
[349916541,1737503440544,-153.0,0.00021787,2]
[349916543,1737503440553,-153.0,0.00021787,2]
[349916545,1737503440563,-153.0,0.00021787,2]
[349916547,1737503440574,-153.0,0.00021787,2]
[349916549,1737503440584,-404.13517671,0.00021817,3]
[349916551,1737503440593,-547.30917803,0.00021861,2]
[349916553,1737503440603,-1081.1,0.000219,2]
[349916554,1737503440612,-188.0,0.000219,2]
[349916557,1737503440622,-734.5598616,0.000219,2]
[349916559,1737503440632,-1717.7296956,0.0002191,2]
[349916561,1737503440642,-276.85537061,0.00021916,2]
[349916562,1737503440653,-500.0,0.00021916,2]
[349916565,1737503440662,-500.0,0.00021916,2]
[349916567,1737503440672,-500.0,0.00021916,2]
[349916569,1737503440682,-500.0,0.00021916,2]
[349916579,1737503440761,-315.04470256,0.00021916,2]
[349916582,1737503440792,-333.17327947,0.00021916,2]
[349916584,1737503440801,-500.0,0.00021916,2]
[349916586,1737503440813,-500.0,0.00021916,2]
[349916588,1737503440823,-3815.62816743,0.00021917,5]
[349916590,1737503440838,-900.4670351,0.00021917,5]
[349916592,1737503440847,-538.57810268,0.00021917,3]
[349916594,1737503440856,-500.0,0.00021917,2]
[349916596,1737503440865,-500.0,0.00021917,3]
[349916599,1737503440874,-500.0,0.00021917,3]
[349916601,1737503440883,-500.0,0.00021917,3]
[349916603,1737503440892,-297.98130536,0.00021917,3]
[349916605,1737503440902,-500.0,0.00021917,3]
[349916606,1737503440911,-502.62323616,0.00021917,3]
[349916608,1737503440921,-500.0,0.00021917,3]
[349916610,1737503440930,-500.0,0.00021917,3]
[349916612,1737503440939,-500.0,0.00021917,3]
[349916614,1737503440948,-500.0,0.00021917,3]
[349916617,1737503440958,-500.0,0.00021917,3]
[349916619,1737503440967,-500.0,0.00021917,3]
[349916621,1737503440977,-500.0,0.00021917,3]
[349916623,1737503440986,-500.0,0.00021917,3]
[349916625,1737503440996,-501.06283492,0.00021917,3]
[349916627,1737503441005,-500.0,0.00021917,3]
[349916629,1737503441014,-500.0,0.00021917,3]
[349916631,1737503441024,-500.0,0.00021917,3]
[349916633,1737503441033,-267.49945724,0.00021917,3]
[349916635,1737503441042,-500.0,0.00021917,3]
[349916637,1737503441052,-500.78599156,0.00021917,3]
[349916639,1737503441062,-614.39482546,0.00021917,3]
[349916641,1737503441071,-500.0,0.00021917,2]
[349916643,1737503441081,-500.0,0.00021917,2]
[349916645,1737503441090,-500.0,0.00021917,2]
[349916647,1737503441099,-506.478798,0.00021917,2]
[349916649,1737503441108,-500.0,0.00021917,3]
[349916651,1737503441117,-500.0,0.00021917,3]
[349916653,1737503441127,-536.6713274,0.00021917,3]
[349916655,1737503441136,-500.0,0.00021917,3]
[349916657,1737503441145,-508.32346134,0.00021917,3]
[349916659,1737503441153,-183.99531828,0.00021917,3]
[349916661,1737503441163,-500.0,0.00021917,3]
[349916662,1737503441172,-500.0,0.00021917,3]
[349916665,1737503441181,-500.0,0.00021917,3]
[349916667,1737503441191,-500.0,0.00021917,3]
[349916668,1737503441200,-500.0,0.00021917,3]
[349916670,1737503441209,-500.0,0.00021917,3]
[349916673,1737503441219,-500.0,0.00021917,3]
[349916674,1737503441228,-501.78866846,0.00021917,3]
[349916676,1737503441237,-500.0,0.00021917,3]
[349916679,1737503441247,-500.0,0.00021917,3]
[349916681,1737503441256,-500.0,0.00021917,3]
[349916683,1737503441266,-500.0,0.00021917,3]
[349916685,1737503441276,-500.0,0.00021917,3]
[349916687,1737503441286,-500.0,0.00021917,3]
[349916689,1737503441295,-584.04801945,0.00021917,3]
[349916691,1737503441305,-500.0,0.00021917,3]
[349916693,1737503441314,-500.64756074,0.00021917,3]
[349916695,1737503441324,-500.0,0.00021917,3]
[349916697,1737503441333,-514.56902901,0.00021917,3]
[349916699,1737503441342,-500.0,0.00021917,3]
[349916701,1737503441351,-500.0,0.00021917,3]
[349916703,1737503441361,-500.0,0.00021917,3]
[349916705,1737503441370,-500.0,0.00021917,3]
[349916707,1737503441379,-499.85445729,0.00021917,3]
[349916709,1737503441388,-499.37875295,0.00021917,3]
[349916900,1737503442913,-120.13124705,0.00021917,3]
[349916903,1737503443013,-500.0,0.00021917,3]
[349916905,1737503443022,-500.0,0.00021917,3]
[349916908,1737503443032,-500.0,0.00021917,3]
[349916910,1737503443042,-500.0,0.00021917,3]
[349916914,1737503443052,-500.0,0.00021917,3]
[349916915,1737503443061,-163.38918012,0.00021917,3]
[349916918,1737503443071,-500.0,0.00021917,3]
[349916920,1737503443080,-488.85831506,0.00021917,3]
[349916925,1737503443106,-11.14168494,0.00021917,3]
[349916927,1737503443116,-248.37126248,0.00021917,3]
[349916929,1737503443125,-500.0,0.00021917,3]
[349916931,1737503443135,-500.0,0.00021917,3]
[349916933,1737503443143,-500.0,0.00021917,3]
[349916935,1737503443152,-440.48705258,0.00021917,3]
[349919394,1737503690133,160.609686,0.00013973,2]
[349919456,1737504632338,-6664.11,0.00018,2]
[349919459,1737504632353,-489.7065744,0.000189,2]
[349919461,1737504632367,-259.976,0.0002082,2]
[349919464,1737504632381,-316.8683812,0.0002137,2]
[349919466,1737504632394,-300.0,0.00021399,2]
[349919469,1737504632408,-3000.0,0.000214,2]
[349919471,1737504632422,-438.0,0.000214,9]
[349919473,1737504632435,-620.0,0.000214,2]
[349919478,1737504632451,-3000.0,0.0002141,2]
[349919481,1737504632465,-3000.0,0.0002142,2]
[349919483,1737504632479,-3000.0,0.0002143,2]
[349919486,1737504632493,-3000.0,0.0002144,2]
[349919488,1737504632507,-3000.0,0.0002145,2]
[349919490,1737504632521,-3000.0,0.0002146,2]
[349919493,1737504632535,-3000.0,0.0002147,2]
[349919495,1737504632549,-3364.703731,0.0002148,2]
[349919498,1737504632562,-1000.0,0.00021562,2]
[349919500,1737504632579,-500.0,0.00021563,2]
[349919503,1737504632594,-297.327,0.00021563,2]
[349919505,1737504632608,-1200.0,0.00021563,2]
[349919508,1737504632623,-1000.0,0.00021622,2]
[349919510,1737504632636,-1000.0,0.00021634,2]
[349919512,1737504632646,-160.609686,0.00021661,2]
[349919514,1737504632657,-195.292,0.00021742,2]
[349919516,1737504632667,-316.86838119,0.00021785,2]
[349919532,1737504632825,-972.99,0.000218,2]
[349919534,1737504632834,-195.1542,0.000219,2]
[349919536,1737504632845,-6622.38888952,0.000219,3]
[349919538,1737504632855,-500.0,0.00021916,2]
[349919540,1737504632865,-1907.81408372,0.00021917,5]
[349919542,1737504632880,-534.37976755,0.00021917,5]
[349919544,1737504632889,-500.0,0.00021917,2]
[349919546,1737504632899,-504.36668707,0.00021917,3]
[349919548,1737504632908,-500.0,0.00021917,3]
[349919550,1737504632919,-500.0,0.00021917,3]
[349919552,1737504632928,-500.0,0.00021917,3]
[349919554,1737504632938,-500.0,0.00021917,3]
[349919556,1737504632948,-500.0,0.00021917,3]
[349919558,1737504632959,-500.0,0.00021917,3]
[349919560,1737504632968,-500.0,0.00021917,3]
[349919562,1737504632977,-502.57867064,0.00021917,3]
[349919564,1737504632987,-500.0,0.00021917,3]
[349919566,1737504632997,-500.0,0.00021917,3]
[349919568,1737504633006,-502.02388033,0.00021917,2]
[349919570,1737504633015,-450.68598902,0.00021917,3]
[349919572,1737504633026,-500.0,0.00021917,3]
[349919574,1737504633036,-500.0,0.00021917,3]
[349919576,1737504633046,-500.0,0.00021917,3]
[349919578,1737504633056,-501.69453166,0.00021917,3]
[349919580,1737504633066,-524.21361258,0.00021917,3]
[349919582,1737504633080,-527.50932975,0.00021917,3]
[349919584,1737504633091,-500.0,0.00021917,3]
[349919586,1737504633102,-500.0,0.00021917,3]
[349919589,1737504633112,-572.2,0.00021917,3]
[349919590,1737504633123,-500.0,0.00021917,3]
[349919592,1737504633132,-500.0,0.00021917,3]
[349919594,1737504633143,-214.54390531,0.00021917,3]
[349919596,1737504633153,-500.0,0.00021917,3]
[349919598,1737504633163,-500.0,0.00021917,3]
[349919600,1737504633174,-527.50449734,0.00021917,3]
[349919602,1737504633184,-500.0,0.00021917,3]
[349919604,1737504633193,-503.52347018,0.00021917,3]
[349919606,1737504633203,-500.0,0.00021917,3]
[349919608,1737504633213,-500.0,0.00021917,3]
[349919610,1737504633223,-500.0,0.00021917,3]
[349919612,1737504633234,-500.0,0.00021917,3]
[349919614,1737504633244,-500.0,0.00021917,3]
[349919616,1737504633254,-500.0,0.00021917,3]
[349919618,1737504633264,-500.0,0.00021917,3]
[349919620,1737504633274,-500.0,0.00021917,3]
[349919622,1737504633284,-151.0,0.00021917,2]
[349919624,1737504633294,-500.0,0.00021917,3]
[349919626,1737504633303,-500.0,0.00021917,3]
[349919628,1737504633313,-500.0,0.00021917,3]
[349919630,1737504633325,-500.0,0.00021917,3]
[349919632,1737504633335,-505.54605134,0.00021917,3]
[349919634,1737504633345,-339.25638781,0.00021917,3]
[349919636,1737504633355,-500.0,0.00021917,3]
[349919638,1737504633365,-503.9170017,0.00021917,3]
[349919640,1737504633375,-500.0,0.00021917,3]
[349919642,1737504633385,-500.0,0.00021917,3]
[349919644,1737504633395,-500.0,0.00021917,3]
[349919646,1737504633405,-500.0,0.00021917,3]
[349919648,1737504633415,-500.0,0.00021917,3]
[349919650,1737504633424,-500.0,0.00021917,3]
[349919652,1737504633433,-500.0,0.00021917,3]
[349919654,1737504633445,-500.0,0.00021917,3]
[349919657,1737504633455,-500.0,0.00021917,3]
[349919659,1737504633465,-676.96,0.00021917,3]
[349919661,1737504633475,-500.0,0.00021917,3]
[349919663,1737504633484,-500.0,0.00021917,3]
[349919665,1737504633494,-500.0,0.00021917,3]
[349919667,1737504633504,-500.0,0.00021917,3]
[349919669,1737504633514,-500.0,0.00021917,3]
[349919670,1737504633524,-500.0,0.00021917,3]
[349919672,1737504633535,-500.0,0.00021917,3]
[349919674,1737504633545,-500.0,0.00021917,3]
[349919676,1737504633556,-524.33,0.00021917,3]
[349919677,1737504633567,-500.0,0.00021917,3]
[349919678,1737504633580,-500.66201974,0.00021917,3]
[349919679,1737504633590,-500.0,0.00021917,3]
[349919680,1737504633601,-500.0,0.00021917,3]
[349919681,1737504633612,-500.0,0.00021917,3]
[349919682,1737504633623,-500.0,0.00021917,3]
[349919683,1737504633635,-500.0,0.00021917,3]
[349919684,1737504633645,-500.0,0.00021917,3]
[349919685,1737504633655,-500.0,0.00021917,3]
[349919686,1737504633665,-500.0,0.00021917,3]
[349919687,1737504633675,-501.64077077,0.00021917,3]
[349919688,1737504633685,-500.0,0.00021917,3]
[349919689,1737504633695,-500.0,0.00021917,3]
[349919690,1737504633705,-151.0,0.00021917,2]
[349919691,1737504633717,-151.0,0.00021917,2]
[349919692,1737504633728,-151.0,0.00021917,2]
[349919693,1737504633739,-151.0,0.00021917,2]
[349919695,1737504633749,-151.0,0.00021917,2]
[349919697,1737504633759,-500.0,0.00021917,3]
[349919698,1737504633769,-151.0,0.00021917,2]
[349919700,1737504633780,-151.0,0.00021917,2]
[349919702,1737504633791,-188.823429,0.00021917,2]
[349919705,1737504633803,-500.0,0.00021917,3]
[349919706,1737504633813,-305.67029914,0.00021917,3]
[349919709,1737504633828,-582.69,0.00021917,3]
[349919711,1737504633839,-500.0,0.00021917,3]
[349919713,1737504633850,-501.55396924,0.00021917,3]
[349919715,1737504633860,-500.0,0.00021917,3]
[349919717,1737504633872,-500.0,0.00021917,3]
[349919719,1737504633887,-500.0,0.00021917,3]
[349919721,1737504633898,-500.0,0.00021917,3]
[349919723,1737504633910,-500.0,0.00021917,3]
[349919725,1737504633921,-500.0,0.00021917,3]